[Event "TUR-ch U13-18 Open 2023"]
[Site "Antalya"]
[Date "2023.01.23"]
[Round "2"]
[White "Yerli, Hasan"]
[Black "Celik, Ege Yigit"]
[Result "1/2-1/2"]
[ECO "B26"]
[WhiteElo "1510"]
[BlackElo "1891"]
[Annotator "NA RC COMBH"]
[PlyCount "124"]
[EventDate "2023.01.17"]
[EventType "swiss"]
[EventCountry "TUR"]
[SourceTitle "playchess.com"]
[Source "ChessBase"]
[SourceQuality "1"]
[TimeControl "5400+30"]

1. e4 {[%emt 0:01:00]} c5 {[%emt 0:01:00]} 2. Nc3 {[%emt 0:00:30]} Nc6 {[%emt 0:00:00]} 3. g3 {[%emt 0:00:00]} g6 {[%emt 0:00:00]} 4. Bg2 {[%emt 0:00:00]} Bg7 {[%emt 0:01:30]} 5. Nge2 {[%emt 0:00:30]} d6 {[%emt 0:01:30]} 6. d3 {[%emt 0:00:30]} e6 {[%emt 0:04:30]} 7. Be3 {[%emt 0:01:30]} Nd4 {[%emt 0:00:30]} 8. Qd2 {[%emt 0:02:30]} Ne7 {[%emt 0:10:30]} 9. O-O {[%emt 0:01:30] The main line 9.0-0 scores better than 9.Nd1.} O-O {[%emt 0:00:30]} 10. Nd1 {[%emt 0:01:30]} b6 {[%emt 0:09:30]} 11. c3 {[%emt 0:15:30]} Nxe2+ {[%emt 0:00:30]} 12. Qxe2 {[%emt 0:00:30]} Bb7 {[%emt 0:00:00]} 13. f4 {[%emt 0:05:30]} Qd7 {[%emt 0:03:00]} 14. Nf2 {[%emt 0:08:30]} Rad8 {[%emt 0:05:30] [#]} 15. Rfd1 $1 $146 {[%emt 0:09:30]} ({Predecessor:} 15. d4 Qc8 16. Rfd1 Rfe8 17. Rac1 Qa8 18. b4 cxb4 19. cxb4 Rc8 20. Qd3 Rxc1 21. Rxc1 {0-1 Frometa Castillo,Z (2205)-Ghinda,E (2225) Naleczow (Women) 1988 (6)}) 15... d5 {[%emt 0:14:30]} 16. d4 {[%emt 0:05:30]} Qc8 {[%emt 0:01:30]} (16... c4 $11) 17. dxc5 {[%emt 0:08:30]} bxc5 {[%emt 0:01:30]} 18. Rac1 {[%emt 0:05:30]} Ba6 {[%emt 0:10:30]} (18... Rfe8 $11) 19. Qc2 {[%emt 0:03:30]} d4 {[%emt 0:07:30]} 20. cxd4 {[%emt 0:01:30]} cxd4 {[%emt 0:00:30]} 21. Qxc8 {[%emt 0:02:30]} Nxc8 {[%emt 0:00:30]} 22. Bd2 {[%emt 0:02:30]} Nb6 {[%emt 0:01:30]} (22... Be2 $11 {keeps the balance.}) 23. Bb4 {[%emt 0:01:30]} Rfe8 {[%emt 0:00:30]} 24. Bf1 {[%emt 0:02:48]} ({Better is} 24. e5 $16) 24... Bxf1 {[%emt 0:00:30]} 25. Kxf1 {[%emt 0:00:12]} e5 {[%emt 0:01:30]} 26. Rc6 {[%emt 0:09:07]} f5 {[%emt 0:02:30]} 27. fxe5 {[%emt 0:02:12]} Rxe5 {[%emt 0:02:41]} 28. exf5 {[%emt 0:00:25]} Nd5 {[%emt 0:01:33]} 29. Bd2 {[%emt 0:05:20]} Rxf5 {[%emt 0:00:54]} ({Resist} 29... gxf5 30. Nd3 Re4 31. Rdc1 $14) 30. Kg2 {[%emt 0:02:12]} Re8 {[%emt 0:01:15]} 31. Re1 {[%emt 0:00:56]} Ne3+ {[%emt 0:07:27]} 32. Bxe3 {[%emt 0:01:13]} dxe3 {[%emt 0:00:30]} 33. Ng4 {[%emt 0:01:00]} Ra5 {[%emt 0:09:26]} 34. Rxe3 {[%emt 0:01:10]} Rxe3 {[%emt 0:00:34]} 35. Nxe3 {[%emt 0:00:06]} Bxb2 {[%emt 0:01:29]} 36. Nc4 {[%emt 0:01:30]} Rxa2 {[%emt 0:00:30]} 37. Rc8+ {[%emt 0:00:00]} Kf7 {[%emt 0:00:00]} 38. Rc7+ {[%emt 0:00:14]} Ke6 {[%emt 0:00:31]} 39. Nxb2 {[%emt 0:00:30]} Rxb2+ {[%emt 0:00:30]} 40. Kh3 {[%emt 0:00:30]} a5 {[%emt 0:00:30]} 41. Rxh7 {[%emt 0:00:30]} a4 {[%emt 0:00:30]} 42. Ra7 {[%emt 0:00:30]} Rb4 {[%emt 0:00:30]} 43. Ra6+ {[%emt 0:00:30]} Kd5 {[%emt 0:01:05]} 44. Rxg6 {[%emt 0:00:31]} Kc4 {[%emt 0:00:55]} 45. Ra6 {[%emt 0:00:33]} Kb3 {[%emt 0:00:00]} 46. g4 {[%emt 0:01:07]} a3 {[%emt 0:00:05]} 47. g5 {[%emt 0:00:01]} a2 {[%emt 0:01:00]} 48. g6 {[%emt 0:00:36]} Kb2 {[%emt 0:00:30]} 49. Kg3 {[%emt 0:01:05]} Rb3+ {[%emt 0:00:31]} 50. Kh4 {[%emt 0:00:07]} Ra3 {[%emt 0:00:36]} 51. Rxa3 {[%emt 0:00:06]} Kxa3 {[%emt 0:00:02]} 52. g7 {[%emt 0:00:30]} a1=Q {[%emt 0:00:30]} 53. g8=Q {[%emt 0:00:00]} Qf6+ {[%emt 0:00:28]} 54. Qg5 $16 {[%emt 0:00:03]} Qh8+ {[%emt 0:00:00]} 55. Kg3 {[%emt 0:00:30]} Qb8+ {[%emt 0:00:04]} 56. Qf4 {[%emt 0:00:15]} Qg8+ {[%emt 0:00:30]} 57. Kf2 {[%emt 0:00:00]} Qa2+ {[%emt 0:00:00]} 58. Kf3 {[%emt 0:00:54]} Qd5+ {[%emt 0:00:21]} 59. Qe4 {[%emt 0:00:00]} Qh5+ {[%emt 0:00:11]} 60. Kg2 {[%emt 0:00:26]} Qg5+ {[%emt 0:00:30]} 61. Kh3 {[%emt 0:00:00]} Qh5+ {[%emt 0:00:00]} 62. Kg3 {[%emt 0:00:23]} Qg5+ {[%emt 0:00:00]} 1/2-1/2

[Event "TUR-ch U13-18 Open 2023"]
[Site "Antalya"]
[Date "2023.01.23"]
[Round "2"]
[White "Bilgin, Ali Tugrul"]
[Black "Topuz, Mirac Melih"]
[Result "0-1"]
[ECO "E74"]
[WhiteElo "1477"]
[BlackElo "2071"]
[Annotator "TA"]
[PlyCount "56"]
[EventDate "2023.01.17"]
[EventType "swiss"]
[EventCountry "TUR"]
[SourceTitle "playchess.com"]
[Source "ChessBase"]
[SourceQuality "1"]
[TimeControl "5400+30"]

{[%evp 13,56,-5,30,-130,-124,-124,-121,-134,-125,-122,-129,-121,-133,-128,-121,-132,-131,-135,-64,-63,-65,-60,-50,-112,-98,-470,-471,-451,-445,-425,-310,-639,-631,-632,-637,-621,-594,-621,-620,-1154,-1143,-1146,-1139,-1111,-1100]} 1. d4 {[%emt 0:01:00]} Nf6 {[%emt 0:01:00]} 2. c4 {[%emt 0:00:30]} g6 {[%emt 0:02:30]} 3. Nc3 {[%emt 0:00:30]} Bg7 {[%emt 0:00:30]} 4. e4 {[%emt 0:00:30]} O-O {[%emt 0:02:30]} 5. Be2 {[%emt 0:03:30]} d6 {[%emt 0:00:30]} 6. Bg5 {[%emt 0:03:30]} c5 {[%emt 0:19:30] 6...c5 scores better than 6...Na6.} 7. dxc5 {[%emt 0:11:30]} Qa5 {[%emt 0:00:30]} 8. Qa4 $2 {[%emt 0:16:30] [#] E74: King's Indian: Averbakh Variation: 6...c5.} (8. Bd2 $1 $11) 8... Qxa4 $146 {[%emt 0:32:30][%mdl 64] Overworked Piece} ({Predecessor:} 8... Qxc5 9. Be3 Qc6 10. Qc2 Be6 11. Rc1 Bxc4 12. Bxc4 Qxc4 13. Nd5 Qxc2 14. Nxe7+ Kh8 15. Rxc2 Nxe4 {0-1 Rantanen,M-Kovacs,Z Olympiad-11 Preliminaries A 1954 (4)}) 9. Nxa4 {[%emt 0:00:30]} Nxe4 {[%emt 0:01:30]} 10. Bxe7 {[%emt 0:38:49] Black is better.} Re8 {[%emt 0:00:30]} 11. cxd6 {[%emt 0:09:14] [#]} Bd7 $1 {[%emt 0:00:30] Inhibits f3.} 12. f3 {[%emt 0:00:00]} Bxa4 {[%emt 0:00:00]} 13. fxe4 {[%emt 0:00:20] [#]} Nc6 $1 {[%emt 0:05:00]} 14. Bg5 {[%emt 0:06:13]} Rxe4 {[%emt 0:01:30][%cal Oh7h6]} ({Not} 14... Bxb2 15. Rb1 Bd4 16. Bf3 $15 (16. Rxb7 Reb8 $17)) 15. Rb1 {[%emt 0:02:30] Strongly threatening b3.} Nd4 {[%emt 0:01:30]} ({Better is} 15... Bc2 $17 16. Rc1 Nb4) 16. b3 {[%emt 0:01:11]} Bc6 {[%emt 0:01:30]} 17. Kf2 $1 {[%emt 0:00:59]} Rae8 $36 {[%emt 0:03:30][%cal Re4e2][%mdl 2048] Black has some pressure.} (17... Nxe2 {simplifies} 18. Nxe2 Rg4 19. Be7 Rxg2+ 20. Kf1 Bf8) 18. Be7 {[%emt 0:01:22]} (18. Bf3 $15 Nxf3 19. Nxf3) 18... Nf5 {[%emt 0:04:30] Black has more active pieces. The white rooks are badly placed.} 19. Nf3 {[%emt 0:00:57][%mdl 8192] [#] White does not recover from this.} (19. Bf3 $17 {is a better chance.} Bd4+ 20. Kf1) 19... Nxd6 $1 $19 {[%emt 0:00:30][%mdl 512]} 20. Bxd6 {[%emt 0:00:20] Bd3 would be deadly.} Rxe2+ {[%emt 0:00:30]} 21. Kg3 {[%emt 0:00:00] White is weak on the light squares} h5 {[%emt 0:01:01] And now ...g5 would win.} (21... Rxa2 $2 {loses.} 22. Rbe1 $19) 22. Rhe1 $2 {[%emt 0:00:22]} (22. h4) 22... Bxf3 {[%emt 0:00:30] Black is clearly winning.} ({Weaker is} 22... Rxa2 23. Rxe8+ Bxe8 24. Rd1 $17) 23. Rxe2 {[%emt 0:00:30]} Bxe2 {[%emt 0:00:30] This pair of bishops is nice.} 24. Re1 {[%emt 0:00:19]} Re6 {[%emt 0:00:41]} 25. Bb8 {[%emt 0:00:30]} a6 {[%emt 0:00:00]} 26. Kf2 {[%emt 0:00:13]} Bd4+ {[%emt 0:00:25]} 27. Kg3 {[%emt 0:00:30]} Re3+ {[%emt 0:00:23]} 28. Kf4 {[%emt 0:00:00]} f6 {[%emt 0:02:07] Weighted Error Value: White=0.95/Black=0.10 (very precise)} 0-1

[Event "TUR-ch U13-18 Open 2023"]
[Site "Antalya"]
[Date "2023.01.23"]
[Round "2"]
[White "Arkan, Ege"]
[Black "Durucay, Uygar"]
[Result "0-1"]
[ECO "B13"]
[WhiteElo "1432"]
[BlackElo "1926"]
[Annotator "TA"]
[PlyCount "66"]
[EventDate "2023.01.17"]
[EventType "swiss"]
[EventCountry "TUR"]
[SourceTitle "playchess.com"]
[Source "ChessBase"]
[SourceQuality "1"]
[TimeControl "5400+30"]

{[%evp 22,66,27,27,29,32,39,-24,-24,-20,-24,-28,-28,-22,-26,-23,-33,-40,-32,-39,-30,-31,-29,-40,-31,-42,-39,-49,-48,-50,-53,-114,-49,-72,-60,-65,-58,-92,-84,-82,-58,-56,-48,-70,-59,-1089,-1093]} 1. e4 {[%emt 0:01:00]} c6 {[%emt 0:01:00]} 2. d4 {[%emt 0:00:30]} d5 {[%emt 0:00:30]} 3. exd5 {[%emt 0:00:30]} cxd5 {[%emt 0:00:30]} 4. Bd3 {[%emt 0:00:00]} Nc6 {[%emt 0:00:30]} 5. c3 {[%emt 0:00:00]} Nf6 {[%emt 0:00:30]} 6. Bf4 {[%emt 0:00:00]} Bg4 {[%emt 0:01:30]} 7. Qb3 {[%emt 0:00:00]} Qd7 {[%emt 0:00:30]} 8. Nd2 {[%emt 0:01:30]} e6 {[%emt 0:01:30]} 9. Ngf3 {[%emt 0:00:30]} Bxf3 {[%emt 0:01:30]} 10. Nxf3 {[%emt 0:01:30]} Bd6 {[%emt 0:00:30]} 11. Bxd6 {[%emt 0:00:30]} Qxd6 {[%emt 0:00:30]} 12. O-O {[%emt 0:00:30]} Rb8 {[%emt 0:00:30] B13: Caro-Kann: Exchange Variation and Panov-Botvinnik Attack.} 13. Rae1 {[%emt 0:02:30]} Nd7 {[%emt 0:00:30] [#]} 14. c4 $146 {[%emt 0:21:30]} (14. Re3 $14) ({Predecessor:} 14. Re3 O-O 15. Qc2 g6 16. h4 e5 17. dxe5 Ndxe5 18. Nxe5 Nxe5 19. Be2 f5 20. f4 {½-½ Martin Barcelo,C (2202)-Travesset Sagre,J (2093) Catalunya-ch U10/20 2020 (4)}) 14... dxc4 $11 {[%emt 0:01:30] Black has an edge.} 15. Bxc4 {[%emt 0:00:30]} Na5 {[%emt 0:00:30]} (15... Nxd4 $2 16. Nxd4 Qxd4 17. Rd1 $18) 16. Qc3 {[%emt 0:01:30]} Nxc4 {[%emt 0:00:30]} 17. Qxc4 {[%emt 0:00:30]} O-O {[%emt 0:00:30]} 18. Rc1 {[%emt 0:00:30]} Nb6 {[%emt 0:00:30]} 19. Qd3 {[%emt 0:00:30]} h6 {[%emt 0:01:30]} 20. Rfd1 {[%emt 0:07:30]} Rfd8 {[%emt 0:01:30][%cal Bf8d8,Bd8c8,Bc8c7,Bc7c1,Bc1c3][%mdl 32]} 21. Ne5 {[%emt 0:02:30]} Rbc8 {[%emt 0:03:30] [#] ...Rxc1 is the strong threat.} 22. Rxc8 {[%emt 0:07:30]} Rxc8 {[%emt 0:00:30]} 23. h3 {[%emt 0:00:30]} Qb4 {[%emt 0:09:30]} 24. b3 {[%emt 0:04:30]} Nd5 {[%emt 0:02:30]} 25. Qf3 {[%emt 0:01:30]} Rc7 {[%emt 0:00:30]} 26. Qg3 {[%emt 0:01:30]} (26. Nc4 $15) 26... Qe7 {[%emt 0:06:30]} ({Black should play} 26... Qa5 $17 27. a4 Rc3) 27. Rd2 {[%emt 0:01:30]} Rc1+ {[%emt 0:02:30]} 28. Kh2 {[%emt 0:01:30]} Rc3 {[%emt 0:00:00]} 29. Nf3 {[%emt 0:02:30]} Qb4 {[%emt 0:03:00][%cal Oc3f3] [#] White must now prevent ...Rxf3! Black is more active.} 30. Re2 {[%emt 0:04:30]} Kh7 {[%emt 0:04:30]} 31. Qe5 {[%emt 0:02:30]} Qb6 {[%emt 0:07:30]} 32. Qe4+ {[%emt 0:00:30]} Kg8 {[%emt 0:00:00]} 33. Rc2 $2 {[%emt 0:00:30][%mdl 8192]} (33. Ne5 $15) 33... Qc7+ {[%emt 0:00:00] Weighted Error Value: White=0.44/Black=0.08 (flawless)} 0-1

[Event "TUR-ch U13-18 Open 2023"]
[Site "Antalya"]
[Date "2023.01.23"]
[Round "2"]
[White "Ozkan, Kaan"]
[Black "Zerey, Demhat"]
[Result "0-1"]
[ECO "E72"]
[WhiteElo "1324"]
[BlackElo "1756"]
[Annotator "NA RC COMBH"]
[PlyCount "88"]
[EventDate "2023.01.17"]
[EventType "swiss"]
[EventCountry "TUR"]
[SourceTitle "playchess.com"]
[Source "ChessBase"]
[SourceQuality "1"]
[TimeControl "5400+30"]

1. d4 {[%emt 0:01:00]} Nf6 {[%emt 0:02:00]} 2. Nf3 {[%emt 0:00:00]} g6 {[%emt 0:01:30]} 3. c4 {[%emt 0:00:00]} Bg7 {[%emt 0:00:30]} 4. Nc3 {[%emt 0:00:00]} O-O {[%emt 0:00:30]} 5. e4 {[%emt 0:00:00]} d6 {[%emt 0:01:30]} 6. g3 {[%emt 0:00:30]} e5 {[%emt 0:01:30]} 7. Bg2 {[%emt 0:00:30]} Nc6 {[%emt 0:02:30]} 8. d5 {[%emt 0:07:30]} Nd4 {[%emt 0:03:30]} 9. h3 {[%emt 0:00:30]} c5 {[%emt 0:02:30]} 10. dxc6 {[%emt 0:00:30]} bxc6 {[%emt 0:00:30]} 11. O-O {[%emt 0:00:30]} c5 {[%emt 0:02:30]} 12. Bg5 {[%emt 0:00:30]} h6 {[%emt 0:02:30]} 13. Bxf6 {[%emt 0:00:30]} Qxf6 {[%emt 0:02:30]} 14. Nxd4 {[%emt 0:01:30]} cxd4 {[%emt 0:01:30]} 15. Nd5 {[%emt 0:00:00]} Qd8 {[%emt 0:00:30]} 16. b3 {[%emt 0:01:00]} f5 {[%emt 0:02:30]} 17. exf5 {[%emt 0:03:30]} Bxf5 {[%emt 0:01:30]} 18. f4 {[%emt 0:00:00]} Rb8 {[%emt 0:18:30]} 19. g4 {[%emt 0:02:00]} Be6 {[%emt 0:02:30]} 20. Qd3 {[%emt 0:00:30]} Bxd5 {[%emt 0:08:30]} 21. Bxd5+ {[%emt 0:01:30]} Kh8 {[%emt 0:00:30]} 22. fxe5 {[%emt 0:01:30]} dxe5 {[%emt 0:02:30]} 23. Rxf8+ {[%emt 0:01:30]} Qxf8 {[%emt 0:00:30]} 24. Rf1 {[%emt 0:00:30]} Qd6 {[%emt 0:03:30]} 25. Kg2 {[%emt 0:01:30]} a5 {[%emt 0:03:30]} 26. Be4 {[%emt 0:01:30]} a4 {[%emt 0:03:30]} 27. Bxg6 {[%emt 0:02:30]} Qa3 {[%emt 0:00:30]} 28. bxa4 {[%emt 0:01:30]} Qxa2+ {[%emt 0:00:30]} 29. Rf2 {[%emt 0:00:00]} Qxa4 {[%emt 0:01:30]} 30. Bf7 {[%emt 0:00:00]} Qb4 {[%emt 0:05:30]} 31. Bd5 {[%emt 0:03:30]} Qd6 {[%emt 0:02:30]} 32. h4 {[%emt 0:01:30]} Qe7 {[%emt 0:02:30]} 33. Qg6 {[%emt 0:00:30]} Rf8 {[%emt 0:03:05]} 34. Ra2 {[%emt 0:03:30]} Qf6 {[%emt 0:01:41]} 35. Qxf6 {[%emt 0:00:30]} Bxf6 {[%emt 0:00:19]} 36. Kg3 {[%emt 0:00:30]} Be7 {[%emt 0:00:15]} 37. Ra6 {[%emt 0:00:30]} d3 {[%emt 0:01:20]} 38. Rxh6+ {[%emt 0:02:30]} Kg7 {[%emt 0:00:01]} 39. Ra6 {[%emt 0:00:30]} Rf1 {[%emt 0:02:13]} 40. Ra2 {[%emt 0:00:30]} Bb4 {[%emt 0:00:06]} 41. Ra7+ {[%emt 0:01:30]} Kf8 {[%emt 0:00:39]} 42. g5 {[%emt 0:00:30]} d2 {[%emt 0:00:57]} 43. g6 {[%emt 0:00:30]} Rg1+ {[%emt 0:00:00]} 44. Kf2 {[%emt 0:01:30]} Bc5+ {[%emt 0:00:00]} 0-1

[Event "TUR-ch U13-18 Open 2023"]
[Site "Antalya"]
[Date "2023.01.23"]
[Round "2"]
[White "Tutmaz, Bugra Hamza"]
[Black "Ozgun, Yigit Deniz"]
[Result "0-1"]
[ECO "B92"]
[WhiteElo "1319"]
[BlackElo "1769"]
[Annotator "NA RC COMBH"]
[PlyCount "108"]
[EventDate "2023.01.17"]
[EventType "swiss"]
[EventCountry "TUR"]
[SourceTitle "playchess.com"]
[Source "ChessBase"]
[SourceQuality "1"]
[TimeControl "5400+30"]

1. e4 {[%emt 0:01:00]} c5 {[%emt 0:01:00]} 2. Nf3 {[%emt 0:00:30]} d6 {[%emt 0:00:30]} 3. d4 {[%emt 0:00:30]} cxd4 {[%emt 0:00:30]} 4. Nxd4 {[%emt 0:00:30]} Nf6 {[%emt 0:00:30]} 5. Nc3 {[%emt 0:00:30]} a6 {[%emt 0:00:30]} 6. Be2 {[%emt 0:01:30]} e5 {[%emt 0:00:30]} 7. Nb3 {[%emt 0:00:30]} Be7 {[%emt 0:00:30]} 8. O-O {[%emt 0:00:30]} O-O {[%emt 0:00:30]} 9. Be3 {[%emt 0:01:30]} Be6 {[%emt 0:01:30]} 10. Qd2 {[%emt 0:04:30]} b5 {[%emt 0:01:30]} 11. f3 {[%emt 0:01:30]} Nbd7 {[%emt 0:02:30]} 12. Rfd1 {[%emt 0:07:30]} Nb6 {[%emt 0:01:30]} 13. Bg5 {[%emt 0:02:30]} Nc4 {[%emt 0:08:30]} 14. Qc1 {[%emt 0:11:30]} Rc8 {[%emt 0:01:30]} 15. Bxc4 {[%emt 0:00:30]} bxc4 {[%emt 0:05:30]} 16. Nd2 {[%emt 0:01:30]} Qb6+ {[%emt 0:00:00]} 17. Kh1 {[%emt 0:00:30]} Ng4 {[%emt 0:00:00]} 18. fxg4 {[%emt 0:00:30]} Bxg5 {[%emt 0:00:00]} 19. Nxc4 {[%emt 0:01:30]} Rxc4 {[%emt 0:04:00]} 20. Qxg5 {[%emt 0:00:30]} Qxb2 {[%emt 0:00:00]} 21. Ne2 {[%emt 0:07:30]} Rxc2 {[%emt 0:01:00]} 22. Rdb1 {[%emt 0:02:30]} Qa3 {[%emt 0:00:30]} 23. Ng3 {[%emt 0:00:30]} f6 {[%emt 0:01:30]} 24. Qh4 {[%emt 0:02:30]} Rxa2 {[%emt 0:00:00]} 25. Rxa2 {[%emt 0:00:30]} Qxa2 {[%emt 0:00:00]} 26. Rf1 {[%emt 0:00:30]} Qd2 {[%emt 0:00:30]} 27. h3 {[%emt 0:00:30]} d5 {[%emt 0:00:30]} 28. exd5 {[%emt 0:00:30]} Bxd5 {[%emt 0:00:30]} 29. Rg1 {[%emt 0:00:30]} Qf2 {[%emt 0:00:30]} 30. Nf5 {[%emt 0:00:30]} Qxh4 {[%emt 0:00:30]} 31. Nxh4 {[%emt 0:00:30]} Ra8 {[%emt 0:00:30]} 32. Nf5 {[%emt 0:00:30]} Kf7 {[%emt 0:02:30]} 33. Rd1 {[%emt 0:06:30]} Be6 {[%emt 0:00:30]} 34. Nd6+ {[%emt 0:00:30]} Ke7 {[%emt 0:00:30]} 35. Ne4 {[%emt 0:00:30]} a5 {[%emt 0:00:00]} 36. Ra1 {[%emt 0:01:30]} a4 {[%emt 0:00:00]} 37. Ra3 {[%emt 0:00:30]} Bd5 {[%emt 0:00:30]} 38. Nc5 {[%emt 0:02:30]} Bc6 {[%emt 0:00:30]} 39. Nd3 {[%emt 0:00:30]} Kd6 {[%emt 0:00:00]} 40. Nb2 {[%emt 0:02:30]} Kc5 {[%emt 0:01:00]} 41. Rc3+ {[%emt 0:00:30]} Kb5 {[%emt 0:00:00]} 42. Nc4 {[%emt 0:13:30]} Bd5 {[%emt 0:00:00]} 43. Na3+ {[%emt 0:01:30]} Kb4 {[%emt 0:00:30]} 44. Re3 {[%emt 0:00:30]} Bb3 {[%emt 0:00:30]} 45. Nb1 {[%emt 0:00:30]} Rd8 {[%emt 0:00:00]} 46. Kh2 {[%emt 0:00:30]} a3 {[%emt 0:02:00]} 47. Nxa3 {[%emt 0:00:30]} Kxa3 {[%emt 0:00:30]} 48. g5 {[%emt 0:00:30]} Kb4 {[%emt 0:00:30]} 49. Kg3 {[%emt 0:00:30]} Be6 {[%emt 0:00:00]} 50. gxf6 {[%emt 0:00:30]} gxf6 {[%emt 0:00:00]} 51. Rf3 {[%emt 0:00:30]} f5 {[%emt 0:00:00]} 52. Kh4 {[%emt 0:00:00]} Kc5 {[%emt 0:03:00]} 53. Kg5 {[%emt 0:00:00]} Rf8 {[%emt 0:00:30]} 54. g4 {[%emt 0:00:30]} f4 {[%emt 0:00:30]} 0-1

[Event "TUR-ch U13-18 Open 2023"]
[Site "Antalya"]
[Date "2023.01.23"]
[Round "2"]
[White "Yogurtcuoglu, Cagan"]
[Black "Hasirci, Ozgur Deniz"]
[Result "1/2-1/2"]
[ECO "D32"]
[WhiteElo "1294"]
[BlackElo "1773"]
[Annotator "NA RC COMBH"]
[PlyCount "129"]
[EventDate "2023.01.17"]
[EventType "swiss"]
[EventCountry "TUR"]
[SourceTitle "playchess.com"]
[Source "ChessBase"]
[SourceQuality "1"]
[TimeControl "5400+30"]

1. d4 {[%emt 0:01:00]} Nf6 {[%emt 0:01:00]} 2. c4 {[%emt 0:00:30]} e6 {[%emt 0:00:30]} 3. Nc3 {[%emt 0:00:30]} d5 {[%emt 0:00:00]} 4. Nf3 {[%emt 0:00:00]} c5 {[%emt 0:00:00]} 5. cxd5 {[%emt 0:01:00]} cxd4 {[%emt 0:00:00]} 6. Nxd4 {[%emt 0:01:30]} exd5 {[%emt 0:00:00]} 7. e3 {[%emt 0:04:30]} Nc6 {[%emt 0:05:30]} 8. Be2 {[%emt 0:02:30]} Be7 {[%emt 0:01:30]} 9. O-O {[%emt 0:00:30]} O-O {[%emt 0:00:00]} 10. b3 {[%emt 0:03:30]} Qa5 {[%emt 0:02:00]} 11. Bb2 {[%emt 0:01:30]} Nxd4 {[%emt 0:02:30]} 12. Qxd4 {[%emt 0:01:30]} Be6 {[%emt 0:04:30]} 13. a3 {[%emt 0:07:30]} Qc5 {[%emt 0:13:30]} 14. Nb5 {[%emt 0:09:30]} a6 {[%emt 0:06:30]} 15. Qxc5 {[%emt 0:02:30]} Bxc5 {[%emt 0:00:30]} 16. Nd4 {[%emt 0:00:00]} Ne4 {[%emt 0:00:00]} 17. Rfd1 {[%emt 0:03:00]} Rac8 {[%emt 0:02:00]} 18. Bf3 {[%emt 0:05:30]} Bxd4 {[%emt 0:02:30]} 19. Bxd4 {[%emt 0:01:30]} Rc2 {[%emt 0:00:00]} 20. Bxe4 {[%emt 0:09:30]} dxe4 {[%emt 0:00:00]} 21. b4 {[%emt 0:01:30]} Rfc8 {[%emt 0:00:30]} 22. Bc5 {[%emt 0:00:30]} h6 {[%emt 0:00:00]} 23. h4 {[%emt 0:01:30]} Kh7 {[%emt 0:00:00]} 24. Rd4 {[%emt 0:01:30]} Bf5 {[%emt 0:00:30]} 25. Rd5 {[%emt 0:03:30]} g6 {[%emt 0:10:30]} 26. Rad1 {[%emt 0:04:30]} Be6 {[%emt 0:36:10]} 27. Re5 {[%emt 0:16:00]} Rc4 {[%emt 0:00:23]} 28. Rd4 {[%emt 0:04:15]} Rxd4 {[%emt 0:00:30]} 29. exd4 {[%emt 0:01:42]} Rd8 {[%emt 0:00:49]} 30. Rxe4 {[%emt 0:00:18]} Rd5 {[%emt 0:00:02]} 31. f3 {[%emt 0:02:48]} Kg7 {[%emt 0:00:34]} 32. Kf2 {[%emt 0:00:30]} Kf6 {[%emt 0:00:00]} 33. g4 {[%emt 0:00:25]} h5 {[%emt 0:02:45]} 34. Kg3 {[%emt 0:02:09]} Kg7 {[%emt 0:07:40]} 35. Kf4 {[%emt 0:01:19]} hxg4 {[%emt 0:02:20]} 36. fxg4 {[%emt 0:00:13]} Rd8 {[%emt 0:00:18]} 37. Re2 {[%emt 0:02:19]} Rd5 {[%emt 0:01:27]} 38. Rc2 {[%emt 0:01:18]} Bd7 {[%emt 0:00:29]} 39. Ba7 {[%emt 0:00:49]} Bc6 {[%emt 0:00:48]} 40. Re2 {[%emt 0:00:59]} Rd7 {[%emt 0:00:14]} 41. Re8 {[%emt 0:01:34]} Rd6 {[%emt 0:01:16]} 42. Re1 {[%emt 0:00:30]} Rf6+ {[%emt 0:00:30]} 43. Kg5 {[%emt 0:00:30]} Rf3 {[%emt 0:00:30]} 44. Re7 {[%emt 0:03:48]} Rxa3 {[%emt 0:00:33]} 45. Bb8 {[%emt 0:00:31]} Rd3 {[%emt 0:01:24]} 46. Be5+ {[%emt 0:00:30]} Kf8 {[%emt 0:00:00]} 47. Rc7 {[%emt 0:00:17]} Ke8 {[%emt 0:00:33]} 48. h5 {[%emt 0:00:30]} gxh5 {[%emt 0:00:00]} 49. gxh5 {[%emt 0:00:39]} Rh3 {[%emt 0:00:19]} 50. Bf6 {[%emt 0:00:14]} Rg3+ {[%emt 0:01:15]} 51. Kh4 {[%emt 0:01:17]} Rg1 {[%emt 0:00:18]} 52. Re7+ {[%emt 0:00:19]} Kf8 {[%emt 0:00:01]} 53. Re3 {[%emt 0:00:37]} Bd7 {[%emt 0:00:24]} 54. h6 {[%emt 0:00:12]} Rh1+ {[%emt 0:00:05]} 55. Kg5 {[%emt 0:00:33]} Rg1+ {[%emt 0:00:21]} 56. Kh5 {[%emt 0:00:23]} Rh1+ {[%emt 0:00:38]} 57. Bh4 {[%emt 0:00:29]} Bf5 {[%emt 0:00:00]} 58. Rg3 {[%emt 0:00:37]} Bg6+ {[%emt 0:00:07]} 59. Kg5 {[%emt 0:00:31]} Kg8 {[%emt 0:00:04]} 60. Rf3 {[%emt 0:00:24]} Kh7 {[%emt 0:00:16]} 61. Rg3 {[%emt 0:00:30]} Rf1 {[%emt 0:00:21]} 62. Rc3 {[%emt 0:00:28]} Rf5+ {[%emt 0:01:03]} 63. Kg4 {[%emt 0:00:30]} Kxh6 {[%emt 0:00:03]} 64. Rc7 {[%emt 0:00:03]} Rb5 {[%emt 0:00:00]} 65. Be7 {[%emt 0:00:10]} 1/2-1/2